{"text_format":"1","workbook":"xlsx","n_sheets":2,"sheets":["県様式","記載例"],"not_rendered":{"charts":0,"images":0,"macros":1,"external_links":0,"defined_names":2,"comments":1,"pivot_tables":0},"unopened":[],"bounds":{"document_bytes":16777216,"sheet_cells":100000,"rows_first":2000,"rows_last":500,"rows_between":2000,"halvings":0,"cell_chars":16384,"cell_head_chars":4096},"cells_cut":0,"cells_raw":0,"read":"whole","date_system":"1900"}

{"sheet":"県様式","index":0,"n_rows":171,"n_cols":73,"rows_kept":171,"cut":false,"hidden":false,"merged":[[56,42,56,43],[56,1,56,3],[56,4,56,5],[56,6,56,7],[56,8,56,9],[61,1,61,10],[61,19,61,28],[57,1,57,9],[57,19,58,21],[57,37,58,39],[59,1,59,3],[59,24,60,26],[59,27,60,27],[59,37,59,39],[60,1,60,3],[55,47,55,52],[56,47,60,52],[57,40,58,45],[54,40,55,40],[54,41,55,41],[59,40,59,45],[56,44,56,45],[54,23,55,23],[54,24,55,24],[54,25,55,25],[54,26,55,26],[54,42,55,42],[54,43,55,43],[54,27,55,27],[54,28,60,28],[54,29,60,34],[54,37,55,39],[54,44,55,44],[54,45,55,45],[54,46,60,46],[56,24,56,25],[56,26,56,27],[56,37,56,39],[56,40,56,41],[52,41,53,41],[54,1,55,3],[54,4,55,4],[54,5,55,5],[54,6,55,6],[54,7,55,7],[54,8,55,8],[54,9,55,9],[54,10,60,10],[54,11,60,16],[56,19,56,21],[56,22,56,23],[54,19,55,21],[54,22,55,22],[52,1,53,4],[52,5,53,5],[52,19,53,22],[52,23,53,23],[52,37,53,40],[59,23,60,23],[59,19,60,22],[42,2,43,4],[42,5,43,5],[38,5,39,5],[29,38,30,40],[25,5,26,5],[25,20,26,22],[25,23,26,23],[27,2,28,4],[31,5,32,5],[31,20,32,22],[25,37,48,37],[25,38,26,40],[42,20,43,22],[42,23,43,23],[25,19,48,19],[48,38,48,40],[40,2,41,4],[31,2,32,4],[33,2,34,4],[33,5,34,5],[33,20,34,22],[27,23,28,23],[33,23,34,23],[38,2,39,4],[44,41,45,41],[27,5,28,5],[31,23,32,23],[31,38,32,40],[31,41,32,41],[42,38,43,40],[42,41,43,41],[40,20,41,22],[40,23,41,23],[40,38,41,40],[40,41,41,41],[38,38,39,40],[33,38,34,40],[33,41,34,41],[44,5,45,5],[44,20,45,22],[44,23,45,23],[44,38,45,40],[40,5,41,5],[29,20,30,22],[37,38,37,40],[38,20,39,22],[38,23,39,23],[38,41,39,41],[20,38,21,40],[20,41,21,41],[29,2,30,4],[24,2,24,4],[24,20,24,22],[24,38,24,40],[27,38,28,40],[27,41,28,41],[29,5,30,5],[16,37,24,37],[16,38,17,40],[16,41,17,41],[18,2,19,4],[18,5,19,5],[18,20,19,22],[18,23,19,23],[18,38,19,40],[18,41,19,41],[20,2,21,4],[25,41,26,41],[27,20,28,22],[29,23,30,23],[29,41,30,41],[25,1,48,1],[25,2,26,4],[44,2,45,4],[37,2,37,4],[37,20,37,22],[48,2,48,4],[48,20,48,22],[14,45,15,45],[15,46,15,52],[15,1,15,4],[15,6,15,8],[14,5,15,5],[14,9,15,9],[16,1,24,1],[16,2,17,4],[16,5,17,5],[16,19,24,19],[16,20,17,22],[16,23,17,23],[20,5,21,5],[20,20,21,22],[20,23,21,23],[14,10,15,16],[14,23,15,23],[14,27,15,27],[14,28,15,34],[15,19,15,22],[15,24,15,26],[15,37,15,40],[15,42,15,44],[14,41,15,41],[11,42,12,45],[11,30,12,34],[12,37,12,39],[12,40,12,41],[9,2,9,15],[9,38,9,51],[5,1,5,4],[5,5,5,11],[5,12,5,16],[5,19,5,22],[10,19,10,21],[10,22,10,29],[10,30,10,34],[10,4,10,11],[10,12,10,16],[10,37,10,39],[10,40,10,47],[8,2,8,16],[7,1,9,1],[7,2,7,16],[6,37,6,52],[10,48,10,52],[12,48,12,52],[13,19,13,27],[13,28,13,34],[13,37,13,45],[13,46,13,52],[7,38,7,52],[8,38,8,52],[11,46,12,46],[8,20,8,34],[7,19,9,19],[7,37,9,37],[7,20,7,34],[0,42,1,43],[0,47,1,51],[1,44,1,46],[2,37,2,39],[0,44,0,46],[5,37,5,40],[5,41,5,47],[3,1,4,3],[3,19,4,21],[3,37,4,39],[4,5,4,11],[4,12,4,16],[4,41,4,47],[4,48,4,52],[5,48,5,52],[0,6,1,7],[2,6,3,10],[2,24,3,28],[2,42,3,46],[13,1,13,9],[13,10,13,16],[2,1,2,3],[2,19,2,21],[0,26,0,28],[6,1,6,16],[6,19,6,34],[10,1,10,3],[4,23,4,29],[4,30,4,34],[5,23,5,29],[5,30,5,34],[1,8,1,10],[1,26,1,28],[0,11,1,14],[0,29,1,32],[9,20,9,33],[11,1,12,3],[11,4,12,11],[11,12,12,16],[11,19,12,21],[11,22,12,29],[0,24,1,25],[0,8,0,10]]}
[null,null,null,null,null,null,"法　人",null,"県民税",null,null,"領 収 証 書 ",null,null,null,null,null,null,null,null,null,null,null,null,"法　人",null,"県民税",null,null,"納　付　書 ",null,null,null,null,null,null,null,null,null,null,null,null,"法　人",null,"県民税",null,null,"領収済通知書"]
[null,null,null,null,null,null,null,null,"事業税",null,null,null,null,null,null,null,null,null,null,null,null,null,null,null,null,null,"事業税",null,null,null,null,null,null,null,null,null,null,null,null,null,null,null,null,null,"事業税"]
[null,"都道府県ｺｰﾄﾞ",null,null,null,null,"特別法人事業税",null,null,null,null,null,null,null,null,null,null,null,null,"都道府県ｺｰﾄﾞ",null,null,null,null,"特別法人事業税",null,null,null,null,null,null,null,null,null,null,null,null,"都道府県ｺｰﾄﾞ",null,null,null,null,"特別法人事業税"]
[null,"200000",null,null,null,null,null,null,null,null,null,null,null,null,null,null,null,null,null,"200000",null,null,null,null,null,null,null,null,null,null,null,null,null,null,null,null,null,"200000"]
[null,null,null,null,null,"口座番号",null,null,null,null,null,null,"加入者",null,null,null,null,null,null,null,null,null,null,"口座番号",null,null,null,null,null,null,"加入者",null,null,null,null,null,null,null,null,null,null,"口座番号",null,null,null,null,null,null,"加入者"]
[null,"長野県",null,null,null,"00560-1-960021",null,null,null,null,null,null,"長野県総務部税務課",null,null,null,null,null,null,"長野県",null,null,null,"00560-1-960021",null,null,null,null,null,null,"長野県総務部税務課",null,null,null,null,null,null,"長野県",null,null,null,"00560-1-960021",null,null,null,null,null,null,"長野県総務部税務課"]
[null,"所在地及び法人名",null,null,null,null,null,null,null,null,null,null,null,null,null,null,null,null,null,"所在地及び法人名",null,null,null,null,null,null,null,null,null,null,null,null,null,null,null,null,null,"所在地及び法人名"]
[null,null,null,null,null,null,null,null,null,null,null,null,null,null,null,null,null,null,null,null,{"$f":"IF(C8=\"\",\"\",C8)","v":""},null,null,null,null,null,null,null,null,null,null,null,null,null,null,null,null,{"$f":"IF(T8=\"\",\"\",T8)","v":""},{"$f":"IF(C8=\"\",\"\",C8)","v":""}]
[null,null,null,null,null,null,null,null,null,null,null,null,null,null,null,null,null,null,null,null,{"$f":"IF(C9=\"\",\"\",C9)","v":""},null,null,null,null,null,null,null,null,null,null,null,null,null,null,null,null,null,{"$f":"IF(C9=\"\",\"\",C9)","v":""}]
[null,null,null,null,null,null,null,null,null,null,null,null,null,null,null,null,"様",null,null,null,{"$f":"IF(C10=\"\",\"\",C10)","v":""},null,null,null,null,null,null,null,null,null,null,null,null,null,"様",null,null,null,{"$f":"IF(C10=\"\",\"\",C10)","v":""}]
[null,"年度",null,null,"※処理事項",null,null,null,null,null,null,null,"管理番号",null,null,null,null,null,null,"年度",null,null,"※処理事項",null,null,null,null,null,null,null,"管理番号",null,null,null,null,null,null,"年度",null,null,"※処理事項",null,null,null,null,null,null,null,"管理番号"]
[null,null,null,null,null,null,null,null,null,null,null,null,null,null,null,null,null,null,null,{"$f":"IF(B12=\"\",\"\",B12)","v":""},null,null,null,null,null,null,null,null,null,null,{"$f":"IF(M12=\"\",\"\",M12)","v":""},null,null,null,null,null,null,null,null,null,3,4,null,null,null,null,"納付区分",5,6,null,null,null,14]
[null,null,null,null,null,null,null,null,null,null,null,null,null,null,null,null,null,null,null,null,null,null,null,null,null,null,null,null,null,null,null,null,null,null,null,null,null,{"$f":"IF(B12=\"\",\"\",B12)","v":""},null,null,16,null,null,null,null,null,null,null,{"$f":"IF(M12=\"\",\"\",M12)","v":""}]
[null,"事業年度（算定期間）",null,null,null,null,null,null,null,null,"申告区分",null,null,null,null,null,null,null,null,"事業年度（算定期間）",null,null,null,null,null,null,null,null,"申告区分",null,null,null,null,null,null,null,null,"事業年度（算定期間）",null,null,null,null,null,null,null,null,"申告区分"]
[null,null,null,null,null,"から",null,null,null,"まで","確定",null,null,null,null,null,null,null,null,null,null,null,null,"から",null,null,null,"まで",{"$f":"IF(K15=\"\",\"\",K15)","v":"確定"},null,null,null,null,null,null,null,null,15,null,null,20,"から",null,null,null,"まで",21,null,null,null,null,null,22]
[null,null,null,null,null,null,null,null,null,null,null,null,null,null,null,null,null,null,null,{"$f":"IF(B16=\"\",\"\",B16)","v":""},null,null,null,null,{"$f":"IF(G16=\"\",\"\",G16)","v":""},null,null,null,null,null,null,null,null,null,null,null,null,{"$f":"IF(B16=\"\",\"\",B16)","v":""},null,null,null,null,{"$f":"IF(G16=\"\",\"\",G16)","v":""},null,null,null,{"$f":"IF(K15=\"予定（中間）\",11,IF(K15=\"見込納付\",50,IF(K15=\"確定\",51,IF(K15=\"修正\",52,IF(K15=\"更正\",53,IF(K15=\"決定\",54))))))","v":51}]
[null,"法人県民税","法人税割額",null,null,"01","百","十","億","千","百","十","万","千","百","十","円",null,null,"法人県民税","法人税割額",null,null,"01","百","十","億","千","百","十","万","千","百","十","円",null,null,"法人県民税","法人税割額",null,null,"01",23,null,null,null,null,null,null,null,null,null,33]
[null,null,null,null,null,null,null,null,null,null,null,null,null,null,null,null,null,null,null,null,null,null,null,null,{"$f":"IF(G18=\"\",\"\",G18)","v":""},"","","","","","","","","","",null,null,null,null,null,null,null,{"$f":"IF(G18=\"\",\"\",G18)","v":""},"","","","","","","","","",""]
[null,null,"均等割額",null,null,"02",null,null,null,null,null,null,null,null,null,null,null,null,null,null,"均等割額",null,null,"02",null,null,null,null,null,null,null,null,null,null,null,null,null,null,"均等割額",null,null,"02",34,null,null,null,null,null,null,null,null,null,44]
[null,null,null,null,null,null,null,null,null,null,null,null,null,null,null,null,null,null,null,null,null,null,null,null,{"$f":"IF(G20=\"\",\"\",G20)","v":""},"","","","","","","","","","",null,null,null,null,null,null,null,{"$f":"IF(G20=\"\",\"\",G20)","v":""},"","","","","","","","","",""]
[null,null,"延滞金",null,null,"03",null,null,null,null,null,null,null,null,null,null,null,null,null,null,"延滞金",null,null,"03",null,null,null,null,null,null,null,null,null,null,null,null,null,null,"延滞金",null,null,"03",45,null,null,null,null,null,null,null,null,null,55]
[null,null,null,null,null,null,null,null,null,null,null,null,null,null,null,null,null,null,null,null,null,null,null,null,{"$f":"IF(G22=\"\",\"\",G22)","v":""},"","","","","","","","","","",null,null,null,null,null,null,null,{"$f":"IF(G22=\"\",\"\",G22)","v":""},"","","","","","","","","",""]
[null,null,null,null,null,null,{"$f":"+ROUNDDOWN(BU83/BG84,0)","v":0},{"$f":"+ROUNDDOWN((BU83-BO84)/BG85,0)","v":0},{"$f":"+ROUNDDOWN((BU83-SUM(BO84:BO85))/BG86,0)","v":0},{"$f":"+ROUNDDOWN((BU83-SUM(BO84:BO86))/BG87,0)","v":0},{"$f":"+ROUNDDOWN((BU83-SUM(BO84:BO87))/BG88,0)","v":0},{"$f":"+ROUNDDOWN((BU83-SUM(BO84:BO88))/BG89,0)","v":0},{"$f":"+ROUNDDOWN((BU83-SUM(BO84:BO89))/BG90,0)","v":0},{"$f":"+ROUNDDOWN((BU83-SUM(BO84:BO90))/BG91,0)","v":0},{"$f":"+ROUNDDOWN((BU83-SUM(BO84:BO91))/BG92,0)","v":0},{"$f":"+ROUNDDOWN((BU83-SUM(BO84:BO92))/BG93,0)","v":0},{"$f":"+ROUNDDOWN((BU83-SUM(BO84:BO93))/BG94,0)","v":0}]
[null,null,null,null,null,null,{"$f":"IF(G23=0,\" \",G23)","v":" "},{"$f":"IF(SUM($G$23:H23)=0,\" \",H23)","v":" "},{"$f":"IF(SUM($G$23:I23)=0,\" \",I23)","v":" "},{"$f":"IF(SUM($G$23:J23)=0,\" \",J23)","v":" "},{"$f":"IF(SUM($G$23:K23)=0,\" \",K23)","v":" "},{"$f":"IF(SUM($G$23:L23)=0,\" \",L23)","v":" "},{"$f":"IF(SUM($G$23:M23)=0,\" \",M23)","v":" "},{"$f":"IF(SUM($G$23:N23)=0,\" \",N23)","v":" "},{"$f":"IF(SUM($G$23:O23)=0,\" \",O23)","v":" "},{"$f":"IF(SUM($G$23:P23)=0,\" \",P23)","v":" "},{"$f":"IF(SUM($G$23:Q23)=0,\" \",Q23)","v":" "}]
[null,null,"計",null,null,"04",{"$f":"IF(G24=0,\" \",G24)","v":" "},{"$f":"IF(SUM($G$24:H24)=0,\" \",H24)","v":" "},{"$f":"IF(SUM($G$24:I24)=0,\" \",I24)","v":" "},{"$f":"IF(SUM($G$24:J24)=0,\" \",J24)","v":" "},{"$f":"IF(SUM($G$24:K24)=0,\" \",K24)","v":" "},{"$f":"IF(SUM($G$24:L24)=0,\" \",L24)","v":" "},{"$f":"IF(SUM($G$24:M24)=0,\" \",M24)","v":" "},{"$f":"IF(SUM($G$24:N24)=0,\" \",N24)","v":" "},{"$f":"IF(SUM($G$24:O24)=0,\" \",O24)","v":" "},{"$f":"IF(SUM($G$24:P24)=0,\" \",P24)","v":" "},{"$f":"IF(SUM($G$24:Q24)=0,\" \",Q24)","v":" "},null,null,null,"計",null,null,"04",{"$f":"IF(G25=\"\",\"\",G25)","v":" "}," "," "," "," "," "," "," "," "," "," ",null,null,null,"計",null,null,"04",{"$f":"IF(G25=\"\",\"\",G25)","v":" "}," "," "," "," "," "," "," "," "," "," "]
[null,"法人事業税・特別法人事業税","所得割額",null,null,"05",null,null,null,null,null,null,null,null,null,null,null,null,null,"法人事業税・特別法人事業税","所得割額",null,null,"05",null,null,null,null,null,null,null,null,null,null,null,null,null,"法人事業税・特別法人事業税","所得割額",null,null,"05",56,null,null,null,null,null,null,null,null,null,66]
[null,null,null,null,null,null,null,null,null,null,null,null,null,null,null,null,null,null,null,null,null,null,null,null,{"$f":"IF(G27=\"\",\"\",G27)","v":""},"","","","","","","","","","",null,null,null,null,null,null,null,{"$f":"IF(G27=\"\",\"\",G27)","v":""},"","","","","","","","","",""]
[null,null,"付加価値割額",null,null,"06",null,null,null,null,null,null,null,null,null,null,null,null,null,null,"付加価値割額",null,null,"06",null,null,null,null,null,null,null,null,null,null,null,null,null,null,"付加価値割額",null,null,"06",128,null,null,null,null,null,null,null,null,null,138]
[null,null,null,null,null,null,null,null,null,null,null,null,null,null,null,null,null,null,null,null,null,null,null,null,{"$f":"IF(G29=\"\",\"\",G29)","v":""},"","","","","","","","","","",null,null,null,null,null,null,null,{"$f":"IF(G29=\"\",\"\",G29)","v":""},"","","","","","","","","",""]
[null,null,"資本割額",null,null,"07",null,null,null,null,null,null,null,null,null,null,null,null,null,null,"資本割額",null,null,"07",null,null,null,null,null,null,null,null,null,null,null,null,null,null,"資本割額",null,null,"07",139,null,null,null,null,null,null,null,null,null,149]
[null,null,null,null,null,null,null,null,null,null,null,null,null,null,null,null,null,null,null,null,null,null,null,null,{"$f":"IF(G31=\"\",\"\",G31)","v":""},"","","","","","","","","","",null,null,null,null,null,null,null,{"$f":"IF(G31=\"\",\"\",G31)","v":""},"","","","","","","","","",""]
[null,null,"収入割額",null,null,"08",null,null,null,null,null,null,null,null,null,null,null,null,null,null,"収入割額",null,null,"08",null,null,null,null,null,null,null,null,null,null,null,null,null,null,"収入割額",null,null,"08",150,null,null,null,null,null,null,null,null,null,160]
[null,null,null,null,null,null,null,null,null,null,null,null,null,null,null,null,null,null,null,null,null,null,null,null,{"$f":"IF(G33=\"\",\"\",G33)","v":""},"","","","","","","","","","",null,null,null,null,null,null,null,{"$f":"IF(G33=\"\",\"\",G33)","v":""},"","","","","","","","","",""]
[null,null,"特別法人事業税",null,null,"09",null,null,null,null,null,null,null,null,null,null,null,null,null,null,"特別法人事業税",null,null,"09",null,null,null,null,null,null,null,null,null,null,null,null,null,null,"特別法人事業税",null,null,"09",161,null,null,null,null,null,null,null,null,null,171]
[null,null,null,null,null,null,null,null,null,null,null,null,null,null,null,null,null,null,null,null,null,null,null,null,{"$f":"IF(G35=\"\",\"\",G35)","v":""},"","","","","","","","","","",null,null,null,null,null,null,null,{"$f":"IF(G35=\"\",\"\",G35)","v":""},"","","","","","","","","",""]
[null,null,null,null,null,null,{"$f":"+ROUNDDOWN(BU108/BG109,0)","v":0},{"$f":"+ROUNDDOWN((BU108-BO109)/BG110,0)","v":0},{"$f":"+ROUNDDOWN((BU108-SUM(BO109:BO110))/BG111,0)","v":0},{"$f":"+ROUNDDOWN((BU108-SUM(BO109:BO111))/BG112,0)","v":0},{"$f":"+ROUNDDOWN((BU108-SUM(BO109:BO112))/BG113,0)","v":0},{"$f":"+ROUNDDOWN((BU108-SUM(BO109:BO113))/BG114,0)","v":0},{"$f":"+ROUNDDOWN((BU108-SUM(BO109:BO114))/BG115,0)","v":0},{"$f":"+ROUNDDOWN((BU108-SUM(BO109:BO115))/BG116,0)","v":0},{"$f":"+ROUNDDOWN((BU108-SUM(BO109:BO116))/BG117,0)","v":0},{"$f":"+ROUNDDOWN((BU108-SUM(BO109:BO117))/BG118,0)","v":0},{"$f":"+ROUNDDOWN((BU108-SUM(BO109:BO118))/BG119,0)","v":0}]
[null,null,null,null,null,null,{"$f":"IF(G36=0,\" \",G36)","v":" "},{"$f":"IF(SUM($G$36:H36)=0,\" \",H36)","v":" "},{"$f":"IF(SUM($G$36:I36)=0,\" \",I36)","v":" "},{"$f":"IF(SUM($G$36:J36)=0,\" \",J36)","v":" "},{"$f":"IF(SUM($G$36:K36)=0,\" \",K36)","v":" "},{"$f":"IF(SUM($G$36:L36)=0,\" \",L36)","v":" "},{"$f":"IF(SUM($G$36:M36)=0,\" \",M36)","v":" "},{"$f":"IF(SUM($G$36:N36)=0,\" \",N36)","v":" "},{"$f":"IF(SUM($G$36:O36)=0,\" \",O36)","v":" "},{"$f":"IF(SUM($G$36:P36)=0,\" \",P36)","v":" "},{"$f":"IF(SUM($G$36:Q36)=0,\" \",Q36)","v":" "}]
[null,null,"計\n(05～09)",null,null,"10",{"$f":"IF(G37=0,\" \",G37)","v":" "},{"$f":"IF(SUM($G$37:H37)=0,\" \",H37)","v":" "},{"$f":"IF(SUM($G$37:I37)=0,\" \",I37)","v":" "},{"$f":"IF(SUM($G$37:J37)=0,\" \",J37)","v":" "},{"$f":"IF(SUM($G$37:K37)=0,\" \",K37)","v":" "},{"$f":"IF(SUM($G$37:L37)=0,\" \",L37)","v":" "},{"$f":"IF(SUM($G$37:M37)=0,\" \",M37)","v":" "},{"$f":"IF(SUM($G$37:N37)=0,\" \",N37)","v":" "},{"$f":"IF(SUM($G$24:O37)=0,\" \",O37)","v":" "},{"$f":"IF(SUM($G$24:P37)=0,\" \",P37)","v":" "},{"$f":"IF(SUM($G$24:Q37)=0,\" \",Q37)","v":" "},null,null,null,"計\n(05～09)",null,null,"10"," "," "," "," "," "," "," "," "," "," "," ",null,null,null,"計\n(05～09)",null,null,"10"," "," "," "," "," "," "," "," "," "," "," "]
[null,null,"延滞金",null,null,"11",null,null,null,null,null,null,null,null,null,null,null,null,null,null,"延滞金",null,null,"11",null,null,null,null,null,null,null,null,null,null,null,null,null,null,"延滞金",null,null,"11",67,null,null,null,null,null,null,null,null,null,77]
[null,null,null,null,null,null,null,null,null,null,null,null,null,null,null,null,null,null,null,null,null,null,null,null,{"$f":"IF(G40=\"\",\"\",G40)","v":""},"","","","","","","","","","",null,null,null,null,null,null,null,{"$f":"IF(G40=\"\",\"\",G40)","v":""},"","","","","","","","","",""]
[null,null,"過少申告加算金",null,null,"12",null,null,null,null,null,null,null,null,null,null,null,null,null,null,"過小申告加算金",null,null,"12",null,null,null,null,null,null,null,null,null,null,null,null,null,null,"過小申告加算金",null,null,"12",78,null,null,null,null,null,null,null,null,null,88]
[null,null,null,null,null,null,null,null,null,null,null,null,null,null,null,null,null,null,null,null,null,null,null,null,{"$f":"IF(G42=\"\",\"\",G42)","v":""},"","","","","","","","","","",null,null,null,null,null,null,null,{"$f":"IF(G42=\"\",\"\",G42)","v":""},"","","","","","","","","",""]
[null,null,"不申告加算金",null,null,"13",null,null,null,null,null,null,null,null,null,null,null,null,null,null,"不申告加算金",null,null,"13",null,null,null,null,null,null,null,null,null,null,null,null,null,null,"不申告加算金",null,null,"13",89,null,null,null,null,null,null,null,null,null,99]
[null,null,null,null,null,null,null,null,null,null,null,null,null,null,null,null,null,null,null,null,null,null,null,null,{"$f":"IF(G44=\"\",\"\",G44)","v":""},"","","","","","","","","","",null,null,null,null,null,null,null,{"$f":"IF(G44=\"\",\"\",G44)","v":""},"","","","","","","","","",""]
[null,null,"重加算金",null,null,"14",null,null,null,null,null,null,null,null,null,null,null,null,null,null,"重加算金",null,null,"14",null,null,null,null,null,null,null,null,null,null,null,null,null,null,"重加算金",null,null,"14",100,null,null,null,null,null,null,null,null,null,110]
[null,null,null,null,null,null,null,null,null,null,null,null,null,null,null,null,null,null,null,null,null,null,null,null,{"$f":"IF(G46=\"\",\"\",G46)","v":""},"","","","","","","","","","",null,null,null,null,null,null,null,{"$f":"IF(G46=\"\",\"\",G46)","v":""},"","","","","","","","","",""]
[null,null,null,null,null,null,{"$f":"+ROUNDDOWN(BT134/BG135,0)","v":0},{"$f":"+ROUNDDOWN((BT134-BO135)/BG136,0)","v":0},{"$f":"+ROUNDDOWN((BT134-SUM(BO135:BO136))/BG137,0)","v":0},{"$f":"+ROUNDDOWN((BT134-SUM(BO135:BO137))/BG138,0)","v":0},{"$f":"+ROUNDDOWN((BT134-SUM(BO135:BO138))/BG139,0)","v":0},{"$f":"+ROUNDDOWN((BT134-SUM(BO135:BO139))/BG140,0)","v":0},{"$f":"+ROUNDDOWN((BT134-SUM(BO135:BO140))/BG141,0)","v":0},{"$f":"+ROUNDDOWN((BT134-SUM(BO135:BO141))/BG142,0)","v":0},{"$f":"+ROUNDDOWN((BT134-SUM(BO135:BO142))/BG143,0)","v":0},{"$f":"+ROUNDDOWN((BT134-SUM(BO135:BO143))/BG144,0)","v":0},{"$f":"+ROUNDDOWN((BT134-SUM(BO135:BO144))/BG145,0)","v":0}]
[null,null,null,null,null,null,{"$f":"IF(G47=0,\" \",G47)","v":" "},{"$f":"IF(SUM($G$47:H47)=0,\" \",H47)","v":" "},{"$f":"IF(SUM($G$47:I47)=0,\" \",I47)","v":" "},{"$f":"IF(SUM($G$47:J47)=0,\" \",J47)","v":" "},{"$f":"IF(SUM($G$47:K47)=0,\" \",K47)","v":" "},{"$f":"IF(SUM($G$47:L47)=0,\" \",L47)","v":" "},{"$f":"IF(SUM($G$47:M47)=0,\" \",M47)","v":" "},{"$f":"IF(SUM($G$47:N47)=0,\" \",N47)","v":" "},{"$f":"IF(SUM($G$47:O47)=0,\" \",O47)","v":" "},{"$f":"IF(SUM($G$47:P47)=0,\" \",P47)","v":" "},{"$f":"IF(SUM($G$47:Q47)=0,\" \",Q47)","v":" "}]
[null,null,"計\n(10～14)",null,null,"15",{"$f":"IF(G48=0,\" \",G48)","v":" "},{"$f":"IF(SUM($G$48:H48)=0,\" \",H48)","v":" "},{"$f":"IF(SUM($G$48:I48)=0,\" \",I48)","v":" "},{"$f":"IF(SUM($G$48:J48)=0,\" \",J48)","v":" "},{"$f":"IF(SUM($G$48:K48)=0,\" \",K48)","v":" "},{"$f":"IF(SUM($G$48:L48)=0,\" \",L48)","v":" "},{"$f":"IF(SUM($G$48:M48)=0,\" \",M48)","v":" "},{"$f":"IF(SUM($G$48:N48)=0,\" \",N48)","v":" "},{"$f":"IF(SUM($G$48:O48)=0,\" \",O48)","v":" "},{"$f":"IF(SUM($G$48:P48)=0,\" \",P48)","v":" "},{"$f":"IF(SUM($G$48:Q48)=0,\" \",Q48)","v":" "},null,null,null,"計\n(10～14)",null,null,"15"," "," "," "," "," "," "," "," "," "," "," ",null,null,null,"計\n(10～14)",null,null,"15"," "," "," "," "," "," "," "," "," "," "," "]
[null,null,null,null,null,null,{"$f":"+ROUNDDOWN(BU125/BG126,0)","v":0},{"$f":"+ROUNDDOWN((BU160-BO161)/BG162,0)","v":0},{"$f":"+ROUNDDOWN((BU160-SUM(BO161:BO162))/BG163,0)","v":0},{"$f":"+ROUNDDOWN((BU160-SUM(BO161:BO163))/BG164,0)","v":0},{"$f":"+ROUNDDOWN((BU160-SUM(BO161:BO164))/BG165,0)","v":0},{"$f":"+ROUNDDOWN((BU160-SUM(BO161:BO165))/BG166,0)","v":0},{"$f":"+ROUNDDOWN((BU160-SUM(BO161:BO166))/BG167,0)","v":0},{"$f":"+ROUNDDOWN((BU160-SUM(BO161:BO167))/BG168,0)","v":0},{"$f":"+ROUNDDOWN((BU160-SUM(BO161:BO168))/BG169,0)","v":0},{"$f":"+ROUNDDOWN((BU160-SUM(BO161:BO169))/BG170,0)","v":0},{"$f":"+ROUNDDOWN((BU160-SUM(BO161:BO170))/BF171,0)","v":0}]
[null,null,null,null,null,null,{"$f":"IF(G50=0,\" \",G50)","v":" "},{"$f":"IF(SUM($G$50:H50)=0,\" \",H50)","v":" "},{"$f":"IF(SUM($G$50:I50)=0,\" \",I50)","v":" "},{"$f":"IF(SUM($G$50:J50)=0,\" \",J50)","v":" "},{"$f":"IF(SUM($G$50:K50)=0,\" \",K50)","v":" "},{"$f":"IF(SUM($G$50:L50)=0,\" \",L50)","v":" "},{"$f":"IF(SUM($G$50:M50)=0,\" \",M50)","v":" "},{"$f":"IF(SUM($G$50:N50)=0,\" \",N50)","v":" "},{"$f":"IF(SUM($G$50:O50)=0,\" \",O50)","v":" "},{"$f":"IF(SUM($G$50:P50)=0,\" \",P50)","v":" "},{"$f":"IF(SUM($G$50:Q50)=0,\" \",Q50)","v":" "}]
[null,null,null,null,null,null,{"$f":"IF(G51=\" \",\"\\\",G51)","v":"\\"},"\\","\\","\\","\\","\\","\\","\\","\\","\\","\\"]
[null,"合　計　額",null,null,null,"16",null,null,null,null,null,null,null,null,null,null,null,null,null,"合　計　額",null,null,null,"16",null,null,null,null,null,null,null,null,null,null,null,null,null,"合　計　額",null,null,null,"16",111,{"$f":"IF(H53=\"\",\"\",H53)","v":""},"","","","","","","","",121]
[null,null,null,null,null,null,{"$f":"IF(H52=\"\\\",\"\",G52)","v":""},{"$f":"IF(I52=\"\\\",\"\",H52)","v":""},"","","","","","","","",{"$f":"IF(Q52=\"\\\",\"0\",Q52)","v":"0"},null,null,null,null,null,null,null,{"$f":"IF(G54=\"\",\"\",G54)","v":""},"","","","","","","","","","0",null,null,null,null,null,null,null,{"$f":"IF(G54=\"\",\"\",G54)","v":""},"","","","","","","","","",{"$f":"IF(Q54=\"\",\"\",Q54)","v":"0"}]
[null,"納期限",null,null,null,"年",null,"月",null,"日","領収日付印",{"$f":"IF(G57=\"\",B64,\"\")","v":""},null,null,null,null,null,null,null,"納期限",null,null,{"$f":"IF(E55=\"\",\"\",E55)","v":""},"年",{"$f":"IF(G55=\"\",\"\",G55)","v":""},"月",{"$f":"IF(I55=\"\",\"\",I55)","v":""},"日","領収日付印",null,null,null,null,null,null,null,null,"納期限",null,null,{"$f":"IF(E55=\"\",\"\",E55)","v":""},"年",{"$f":"IF(G55=\"\",\"\",G55)","v":""},"月",{"$f":"IF(I55=\"\",\"\",I55)","v":""},"日","領収日付印",122,null,null,null,null,127]
[null,null,null,null,null,null,null,null,null,null,null,null,null,null,null,null,null,null,null,null,null,null,null,null,null,null,null,null,null,null,null,null,null,null,null,null,null,null,null,null,null,null,null,null,null,null,null,"年　　月　　日"]
[null,"課税事務所",null,null,"長野県",null,"　",null,"県税事務所",null,null,null,null,null,null,null,null,null,null,"課税事務所",null,null,"長野県",null,{"$f":"IF(G57=\"\",\"\",G57)","v":"　"},null,"県税事務所",null,null,null,null,null,null,null,null,null,null,"課税事務所",null,null,"長野県",null,{"$f":"IF(G57=\"\",\"\",G57)","v":"　"},null,"県税事務所"]
[null,"上記のとおり領収しました。(納税者保管）",null,null,null,null,null,null,null,null,null,null,null,null,null,null,null,null,null,"日計",null,null,null,null,null,null,null,"口",null,null,null,null,null,null,null,null,null,"指定金融機関名\n(取りまとめ店)",null,null,"八十二銀行\n（県庁内支店）"]
[null,null,null,null,null,null,null,null,null,null,null,null,null,null,null,null,null,null,null,null,null,null,null,null,null,null,null,"円"]
[null,null,null,null,null,null,null,null,null,null,null,null,null,null,null,null,null,null,null,"上記のとおり納付します。",null,null,null,"(","金融機関\n又は郵便局保管",null,null,")",null,null,null,null,null,null,null,null,null,"取りまとめ店",null,null,"〒380-8794\nゆうちょ銀行長野貯金事務センター"]
[null,null,null,null,null,null,null,null,null,null,null,null,null,null,null,null,null,null,null,null,null,null,null,null,null,null,null,null,null,null,null,null,null,null,null,null,null,"上記のとおり通知します。(都道府県保管）"]
[]
[null,"※　一番左側の「領収証書」に入力すると、「納付書」「領収済通知書」にも同じ内容が反映されます。"]
[null,"※　管理番号欄及び課税事務所欄は必ず入力をお願いします。入力のない場合、印刷ができません。　管理番号が不明な場合は、課税事務所にお問い合わせください。"]
[null,"※　点線に沿って余白部分を切り取り、３枚１組として各納付場所で使用してください。"]
[]
[]
[]
[]
[null,null,null,null,null,null,null,null,null,null,null,null,null,null,null,null,null,null,null,null,null,null,null,null,null,null,null,null,null,null,null,null,null,null,null,null,null,null,null,null,null,null,null,null,null,null,null,null,null,null,null,null,null,null,null,null,null,null,"法人県民税（１～３）"]
[null,null,null,null,null,null,null,null,null,null,null,null,null,null,null,null,null,null,null,null,null,null,null,null,null,null,null,null,null,null,null,null,null,null,null,null,null,null,null,null,null,null,null,null,null,null,null,null,null,null,null,null,null,null,null,null,null,11,10000000000,{"$f":"G18","v":0},{"$f":"G20","v":0},{"$f":"G22","v":0},null,null,null,null,{"$f":"BG71*BH71","v":0},{"$f":"BG71*BI71","v":0},{"$f":"BG71*BJ71","v":0}]
[null,null,null,null,null,null,null,null,null,null,null,null,null,null,null,null,null,null,null,null,null,null,null,null,null,null,null,null,null,null,null,null,null,null,null,null,null,null,null,null,null,null,null,null,null,null,null,null,null,null,null,null,null,null,null,null,null,10,1000000000,{"$f":"H18","v":0},{"$f":"H20","v":0},{"$f":"H22","v":0},null,null,null,null,{"$f":"BG72*BH72","v":0},{"$f":"BG72*BI72","v":0},{"$f":"BG72*BJ72","v":0}]
[null,null,null,null,null,null,null,null,null,null,null,null,null,null,null,null,null,null,null,null,null,null,null,null,null,null,null,null,null,null,null,null,null,null,null,null,null,null,null,null,null,null,null,null,null,null,null,null,null,null,null,null,null,null,null,null,null,9,100000000,{"$f":"I18","v":0},{"$f":"I20","v":0},{"$f":"I22","v":0},null,null,null,null,0,0,0]
[null,null,null,null,null,null,null,null,null,null,null,null,null,null,null,null,null,null,null,null,null,null,null,null,null,null,null,null,null,null,null,null,null,null,null,null,null,null,null,null,null,null,null,null,null,null,null,null,null,null,null,null,null,null,null,null,null,8,10000000,{"$f":"J18","v":0},{"$f":"J20","v":0},{"$f":"J22","v":0},null,null,null,null,0,0,0]
[null,null,null,null,null,null,null,null,null,null,null,null,null,null,null,null,null,null,null,null,null,null,null,null,null,null,null,null,null,null,null,null,null,null,null,null,null,null,null,null,null,null,null,null,null,null,null,null,null,null,null,null,null,null,null,null,null,7,1000000,{"$f":"K18","v":0},{"$f":"K20","v":0},{"$f":"K22","v":0},null,null,null,null,0,0,0]
[null,null,null,null,null,null,null,null,null,null,null,null,null,null,null,null,null,null,null,null,null,null,null,null,null,null,null,null,null,null,null,null,null,null,null,null,null,null,null,null,null,null,null,null,null,null,null,null,null,null,null,null,null,null,null,null,null,6,100000,{"$f":"L18","v":0},{"$f":"L20","v":0},{"$f":"L22","v":0},null,null,null,null,0,0,0]
[null,null,null,null,null,null,null,null,null,null,null,null,null,null,null,null,null,null,null,null,null,null,null,null,null,null,null,null,null,null,null,null,null,null,null,null,null,null,null,null,null,null,null,null,null,null,null,null,null,null,null,null,null,null,null,null,null,5,10000,{"$f":"M18","v":0},{"$f":"M20","v":0},{"$f":"M22","v":0},null,null,null,null,0,0,0]
[null,null,null,null,null,null,null,null,null,null,null,null,null,null,null,null,null,null,null,null,null,null,null,null,null,null,null,null,null,null,null,null,null,null,null,null,null,null,null,null,null,null,null,null,null,null,null,null,null,null,null,null,null,null,null,null,null,4,1000,{"$f":"N18","v":0},{"$f":"N20","v":0},{"$f":"N22","v":0},null,null,null,null,0,0,0]
[null,null,null,null,null,null,null,null,null,null,null,null,null,null,null,null,null,null,null,null,null,null,null,null,null,null,null,null,null,null,null,null,null,null,null,null,null,null,null,null,null,null,null,null,null,null,null,null,null,null,null,null,null,null,null,null,null,3,100,{"$f":"O18","v":0},{"$f":"O20","v":0},{"$f":"O22","v":0},null,null,null,null,0,0,0]
[null,null,null,null,null,null,null,null,null,null,null,null,null,null,null,null,null,null,null,null,null,null,null,null,null,null,null,null,null,null,null,null,null,null,null,null,null,null,null,null,null,null,null,null,null,null,null,null,null,null,null,null,null,null,null,null,null,2,10,{"$f":"P18","v":0},{"$f":"P20","v":0},{"$f":"P22","v":0},null,null,null,null,0,0,0]
[null,null,null,null,null,null,null,null,null,null,null,null,null,null,null,null,null,null,null,null,null,null,null,null,null,null,null,null,null,null,null,null,null,null,null,null,null,null,null,null,null,null,null,null,null,null,null,null,null,null,null,null,null,null,null,null,null,1,1,{"$f":"Q18","v":0},{"$f":"Q20","v":0},{"$f":"Q22","v":0},null,null,null,null,0,0,0]
[null,null,null,null,null,null,null,null,null,null,null,null,null,null,null,null,null,null,null,null,null,null,null,null,null,null,null,null,null,null,null,null,null,null,null,null,null,null,null,null,null,null,null,null,null,null,null,null,null,null,null,null,null,null,null,null,null,null,null,null,null,null,null,null,null,null,{"$f":"SUM(BO71:BO81)","v":0},{"$f":"SUM(BP71:BP81)","v":0},{"$f":"SUM(BQ71:BQ81)","v":0}]
[null,null,null,null,null,null,null,null,null,null,null,null,null,null,null,null,null,null,null,null,null,null,null,null,null,null,null,null,null,null,null,null,null,null,null,null,null,null,null,null,null,null,null,null,null,null,null,null,null,null,null,null,null,null,null,null,null,null,null,null,null,null,null,null,null,null,null,null,null,null,null,null,{"$f":"BO82+BP82+BQ82","v":0}]
[null,null,null,null,null,null,null,null,null,null,null,null,null,null,null,null,null,null,null,null,null,null,null,null,null,null,null,null,null,null,null,null,null,null,null,null,null,null,null,null,null,null,null,null,null,null,null,null,null,null,null,null,null,null,null,null,null,11,10000000000,null,null,null,null,null,null,11,{"$f":"+G23*BG84","v":0}]
[null,null,null,null,null,null,null,null,null,null,null,null,null,null,null,null,null,null,null,null,null,null,null,null,null,null,null,null,null,null,null,null,null,null,null,null,null,null,null,null,null,null,null,null,null,null,null,null,null,null,null,null,null,null,null,null,null,10,1000000000,null,null,null,null,null,null,10,{"$f":"+H23*BG85","v":0}]
[null,null,null,null,null,null,null,null,null,null,null,null,null,null,null,null,null,null,null,null,null,null,null,null,null,null,null,null,null,null,null,null,null,null,null,null,null,null,null,null,null,null,null,null,null,null,null,null,null,null,null,null,null,null,null,null,null,9,100000000,null,null,null,null,null,null,9,{"$f":"+I23*BG86","v":0}]
[null,null,null,null,null,null,null,null,null,null,null,null,null,null,null,null,null,null,null,null,null,null,null,null,null,null,null,null,null,null,null,null,null,null,null,null,null,null,null,null,null,null,null,null,null,null,null,null,null,null,null,null,null,null,null,null,null,8,10000000,null,null,null,null,null,null,8,{"$f":"+J18*BG87","v":0}]
[null,null,null,null,null,null,null,null,null,null,null,null,null,null,null,null,null,null,null,null,null,null,null,null,null,null,null,null,null,null,null,null,null,null,null,null,null,null,null,null,null,null,null,null,null,null,null,null,null,null,null,null,null,null,null,null,null,7,1000000,null,null,null,null,null,null,7,{"$f":"+K23*BG88","v":0}]
[null,null,null,null,null,null,null,null,null,null,null,null,null,null,null,null,null,null,null,null,null,null,null,null,null,null,null,null,null,null,null,null,null,null,null,null,null,null,null,null,null,null,null,null,null,null,null,null,null,null,null,null,null,null,null,null,null,6,100000,null,null,null,null,null,null,6,{"$f":"+L23*BG89","v":0}]
[null,null,null,null,null,null,null,null,null,null,null,null,null,null,null,null,null,null,null,null,null,null,null,null,null,null,null,null,null,null,null,null,null,null,null,null,null,null,null,null,null,null,null,null,null,null,null,null,null,null,null,null,null,null,null,null,null,5,10000,null,null,null,null,null,null,5,{"$f":"+M23*BG90","v":0}]
[null,null,null,null,null,null,null,null,null,null,null,null,null,null,null,null,null,null,null,null,null,null,null,null,null,null,null,null,null,null,null,null,null,null,null,null,null,null,null,null,null,null,null,null,null,null,null,null,null,null,null,null,null,null,null,null,null,4,1000,null,null,null,null,null,null,4,{"$f":"+N23*BG91","v":0}]
[null,null,null,null,null,null,null,null,null,null,null,null,null,null,null,null,null,null,null,null,null,null,null,null,null,null,null,null,null,null,null,null,null,null,null,null,null,null,null,null,null,null,null,null,null,null,null,null,null,null,null,null,null,null,null,null,null,3,100,null,null,null,null,null,null,3,{"$f":"+O23*BG92","v":0}]
[null,null,null,null,null,null,null,null,null,null,null,null,null,null,null,null,null,null,null,null,null,null,null,null,null,null,null,null,null,null,null,null,null,null,null,null,null,null,null,null,null,null,null,null,null,null,null,null,null,null,null,null,null,null,null,null,null,2,10,null,null,null,null,null,null,2,{"$f":"+P23*BG93","v":0}]
[null,null,null,null,null,null,null,null,null,null,null,null,null,null,null,null,null,null,null,null,null,null,null,null,null,null,null,null,null,null,null,null,null,null,null,null,null,null,null,null,null,null,null,null,null,null,null,null,null,null,null,null,null,null,null,null,null,1,1,null,null,null,null,null,null,1,{"$f":"+Q23*BG94","v":0}]
[null,null,null,null,null,null,null,null,null,null,null,null,null,null,null,null,null,null,null,null,null,null,null,null,null,null,null,null,null,null,null,null,null,null,null,null,null,null,null,null,null,null,null,null,null,null,null,null,null,null,null,null,null,null,null,null,null,null,"法人事業税・地方法人特別税（5～9）",null,null,null,null,null,"\"10\""]
[null,null,null,null,null,null,null,null,null,null,null,null,null,null,null,null,null,null,null,null,null,null,null,null,null,null,null,null,null,null,null,null,null,null,null,null,null,null,null,null,null,null,null,null,null,null,null,null,null,null,null,null,null,null,null,null,null,11,10000000000,{"$f":"G27","v":0},{"$f":"G29","v":0},{"$f":"G31","v":0},{"$f":"G33","v":0},{"$f":"G35","v":0},{"$f":"SUM(BH96:BL96)","v":0},null,{"$f":"BG96*BH96","v":0},{"$f":"BG96*BI96","v":0},{"$f":"BG96*BJ96","v":0},{"$f":"BG96*BK96","v":0},{"$f":"BG96*BL96","v":0},{"$f":"BG96*BM96","v":0}]
[null,null,null,null,null,null,null,null,null,null,null,null,null,null,null,null,null,null,null,null,null,null,null,null,null,null,null,null,null,null,null,null,null,null,null,null,null,null,null,null,null,null,null,null,null,null,null,null,null,null,null,null,null,null,null,null,null,10,1000000000,{"$f":"H27","v":0},{"$f":"H29","v":0},{"$f":"H31","v":0},{"$f":"H32","v":0},{"$f":"H35","v":0},{"$f":"SUM(BH97:BL97)","v":0},null,{"$f":"BG97*BH97","v":0},{"$f":"BG97*BI97","v":0},{"$f":"BG97*BJ97","v":0},{"$f":"BG97*BK97","v":0},{"$f":"BG97*BL97","v":0},0]
[null,null,null,null,null,null,null,null,null,null,null,null,null,null,null,null,null,null,null,null,null,null,null,null,null,null,null,null,null,null,null,null,null,null,null,null,null,null,null,null,null,null,null,null,null,null,null,null,null,null,null,null,null,null,null,null,null,9,100000000,{"$f":"I27","v":0},{"$f":"I29","v":0},{"$f":"I31","v":0},{"$f":"I33","v":0},{"$f":"I35","v":0},0,null,0,0,0,0,0,0]
[null,null,null,null,null,null,null,null,null,null,null,null,null,null,null,null,null,null,null,null,null,null,null,null,null,null,null,null,null,null,null,null,null,null,null,null,null,null,null,null,null,null,null,null,null,null,null,null,null,null,null,null,null,null,null,null,null,8,10000000,{"$f":"J27","v":0},{"$f":"J29","v":0},{"$f":"J31","v":0},{"$f":"J33","v":0},{"$f":"J35","v":0},0,null,0,0,0,0,0,0]
[null,null,null,null,null,null,null,null,null,null,null,null,null,null,null,null,null,null,null,null,null,null,null,null,null,null,null,null,null,null,null,null,null,null,null,null,null,null,null,null,null,null,null,null,null,null,null,null,null,null,null,null,null,null,null,null,null,7,1000000,{"$f":"K27","v":0},{"$f":"K29","v":0},{"$f":"K31","v":0},{"$f":"K33","v":0},{"$f":"K35","v":0},0,null,0,0,0,0,0,0]
[null,null,null,null,null,null,null,null,null,null,null,null,null,null,null,null,null,null,null,null,null,null,null,null,null,null,null,null,null,null,null,null,null,null,null,null,null,null,null,null,null,null,null,null,null,null,null,null,null,null,null,null,null,null,null,null,null,6,100000,{"$f":"L27","v":0},{"$f":"L29","v":0},{"$f":"L31","v":0},{"$f":"L33","v":0},{"$f":"L35","v":0},0,null,0,0,0,0,0,0]
[null,null,null,null,null,null,null,null,null,null,null,null,null,null,null,null,null,null,null,null,null,null,null,null,null,null,null,null,null,null,null,null,null,null,null,null,null,null,null,null,null,null,null,null,null,null,null,null,null,null,null,null,null,null,null,null,null,5,10000,{"$f":"M27","v":0},{"$f":"M29","v":0},{"$f":"M31","v":0},{"$f":"M33","v":0},{"$f":"M35","v":0},0,null,0,0,0,0,0,0]
[null,null,null,null,null,null,null,null,null,null,null,null,null,null,null,null,null,null,null,null,null,null,null,null,null,null,null,null,null,null,null,null,null,null,null,null,null,null,null,null,null,null,null,null,null,null,null,null,null,null,null,null,null,null,null,null,null,4,1000,{"$f":"N27","v":0},{"$f":"N29","v":0},{"$f":"N31","v":0},{"$f":"N33","v":0},{"$f":"N35","v":0},0,null,0,0,0,0,0,0]
[null,null,null,null,null,null,null,null,null,null,null,null,null,null,null,null,null,null,null,null,null,null,null,null,null,null,null,null,null,null,null,null,null,null,null,null,null,null,null,null,null,null,null,null,null,null,null,null,null,null,null,null,null,null,null,null,null,3,100,{"$f":"O27","v":0},{"$f":"O29","v":0},{"$f":"O31","v":0},{"$f":"O33","v":0},{"$f":"O35","v":0},0,null,0,0,0,0,0,0]
[null,null,null,null,null,null,null,null,null,null,null,null,null,null,null,null,null,null,null,null,null,null,null,null,null,null,null,null,null,null,null,null,null,null,null,null,null,null,null,null,null,null,null,null,null,null,null,null,null,null,null,null,null,null,null,null,null,2,10,{"$f":"P27","v":0},{"$f":"P29","v":0},{"$f":"P31","v":0},{"$f":"P33","v":0},{"$f":"P35","v":0},0,null,0,0,0,0,0,0]
[null,null,null,null,null,null,null,null,null,null,null,null,null,null,null,null,null,null,null,null,null,null,null,null,null,null,null,null,null,null,null,null,null,null,null,null,null,null,null,null,null,null,null,null,null,null,null,null,null,null,null,null,null,null,null,null,null,1,1,{"$f":"Q27","v":0},{"$f":"Q29","v":0},{"$f":"Q31","v":0},{"$f":"Q33","v":0},{"$f":"Q35","v":0},0,null,0,0,0,0,0,0]
[null,null,null,null,null,null,null,null,null,null,null,null,null,null,null,null,null,null,null,null,null,null,null,null,null,null,null,null,null,null,null,null,null,null,null,null,null,null,null,null,null,null,null,null,null,null,null,null,null,null,null,null,null,null,null,null,null,null,null,null,null,null,null,null,null,null,{"$f":"SUM(BO96:BO106)","v":0},0,0,0,0,0]
[null,null,null,null,null,null,null,null,null,null,null,null,null,null,null,null,null,null,null,null,null,null,null,null,null,null,null,null,null,null,null,null,null,null,null,null,null,null,null,null,null,null,null,null,null,null,null,null,null,null,null,null,null,null,null,null,null,null,null,null,null,null,null,null,null,null,null,null,null,null,null,null,{"$f":"BO107+BP107+BQ107+BR107+BS107","v":0}]
[null,null,null,null,null,null,null,null,null,null,null,null,null,null,null,null,null,null,null,null,null,null,null,null,null,null,null,null,null,null,null,null,null,null,null,null,null,null,null,null,null,null,null,null,null,null,null,null,null,null,null,null,null,null,null,null,null,11,10000000000,null,null,null,null,null,null,11,{"$f":"+G36*BG109","v":0}]
[null,null,null,null,null,null,null,null,null,null,null,null,null,null,null,null,null,null,null,null,null,null,null,null,null,null,null,null,null,null,null,null,null,null,null,null,null,null,null,null,null,null,null,null,null,null,null,null,null,null,null,null,null,null,null,null,null,10,1000000000,null,null,null,null,null,null,10,{"$f":"+H36*BG110","v":0}]
[null,null,null,null,null,null,null,null,null,null,null,null,null,null,null,null,null,null,null,null,null,null,null,null,null,null,null,null,null,null,null,null,null,null,null,null,null,null,null,null,null,null,null,null,null,null,null,null,null,null,null,null,null,null,null,null,null,9,100000000,null,null,null,null,null,null,9,{"$f":"+I36*BG111","v":0}]
[null,null,null,null,null,null,null,null,null,null,null,null,null,null,null,null,null,null,null,null,null,null,null,null,null,null,null,null,null,null,null,null,null,null,null,null,null,null,null,null,null,null,null,null,null,null,null,null,null,null,null,null,null,null,null,null,null,8,10000000,null,null,null,null,null,null,8,{"$f":"+J36*BG112","v":0}]
[null,null,null,null,null,null,null,null,null,null,null,null,null,null,null,null,null,null,null,null,null,null,null,null,null,null,null,null,null,null,null,null,null,null,null,null,null,null,null,null,null,null,null,null,null,null,null,null,null,null,null,null,null,null,null,null,null,7,1000000,null,null,null,null,null,null,7,{"$f":"+K36*BG113","v":0}]
[null,null,null,null,null,null,null,null,null,null,null,null,null,null,null,null,null,null,null,null,null,null,null,null,null,null,null,null,null,null,null,null,null,null,null,null,null,null,null,null,null,null,null,null,null,null,null,null,null,null,null,null,null,null,null,null,null,6,100000,null,null,null,null,null,null,6,{"$f":"+L36*BG114","v":0}]
[null,null,null,null,null,null,null,null,null,null,null,null,null,null,null,null,null,null,null,null,null,null,null,null,null,null,null,null,null,null,null,null,null,null,null,null,null,null,null,null,null,null,null,null,null,null,null,null,null,null,null,null,null,null,null,null,null,5,10000,null,null,null,null,null,null,5,{"$f":"+M36*BG115","v":0}]
[null,null,null,null,null,null,null,null,null,null,null,null,null,null,null,null,null,null,null,null,null,null,null,null,null,null,null,null,null,null,null,null,null,null,null,null,null,null,null,null,null,null,null,null,null,null,null,null,null,null,null,null,null,null,null,null,null,4,1000,null,null,null,null,null,null,4,{"$f":"+N36*BG116","v":0}]
[null,null,null,null,null,null,null,null,null,null,null,null,null,null,null,null,null,null,null,null,null,null,null,null,null,null,null,null,null,null,null,null,null,null,null,null,null,null,null,null,null,null,null,null,null,null,null,null,null,null,null,null,null,null,null,null,null,3,100,null,null,null,null,null,null,3,{"$f":"+O36*BG117","v":0}]
[null,null,null,null,null,null,null,null,null,null,null,null,null,null,null,null,null,null,null,null,null,null,null,null,null,null,null,null,null,null,null,null,null,null,null,null,null,null,null,null,null,null,null,null,null,null,null,null,null,null,null,null,null,null,null,null,null,2,10,null,null,null,null,null,null,2,{"$f":"+P36*BG118","v":0}]
[null,null,null,null,null,null,null,null,null,null,null,null,null,null,null,null,null,null,null,null,null,null,null,null,null,null,null,null,null,null,null,null,null,null,null,null,null,null,null,null,null,null,null,null,null,null,null,null,null,null,null,null,null,null,null,null,null,1,1,null,null,null,null,null,null,1,{"$f":"+Q36*BG119","v":0}]
[]
[null,null,null,null,null,null,null,null,null,null,null,null,null,null,null,null,null,null,null,null,null,null,null,null,null,null,null,null,null,null,null,null,null,null,null,null,null,null,null,null,null,null,null,null,null,null,null,null,null,null,null,null,null,null,null,null,null,null,"法人事業税・地方法人特別税（１１～１４）"]
[null,null,null,null,null,null,null,null,null,null,null,null,null,null,null,null,null,null,null,null,null,null,null,null,null,null,null,null,null,null,null,null,null,null,null,null,null,null,null,null,null,null,null,null,null,null,null,null,null,null,null,null,null,null,null,null,null,11,10000000000,{"$f":"G40","v":0},{"$f":"G42","v":0},{"$f":"G44","v":0},{"$f":"G46","v":0},null,null,null,{"$f":"BG122*BH122","v":0},{"$f":"BG122*BI122","v":0},{"$f":"BG122*BJ122","v":0},{"$f":"BG122*BK122","v":0}]
[null,null,null,null,null,null,null,null,null,null,null,null,null,null,null,null,null,null,null,null,null,null,null,null,null,null,null,null,null,null,null,null,null,null,null,null,null,null,null,null,null,null,null,null,null,null,null,null,null,null,null,null,null,null,null,null,null,10,1000000000,{"$f":"H40","v":0},{"$f":"H42","v":0},{"$f":"H44","v":0},{"$f":"H46","v":0},null,null,null,{"$f":"BG123*BH123","v":0},{"$f":"BG123*BI123","v":0},{"$f":"BG123*BJ123","v":0},{"$f":"BG123*BK123","v":0}]
[null,null,null,null,null,null,null,null,null,null,null,null,null,null,null,null,null,null,null,null,null,null,null,null,null,null,null,null,null,null,null,null,null,null,null,null,null,null,null,null,null,null,null,null,null,null,null,null,null,null,null,null,null,null,null,null,null,9,100000000,{"$f":"I40","v":0},{"$f":"I42","v":0},{"$f":"I44","v":0},{"$f":"I46","v":0},null,null,null,0,0,0,0]
[null,null,null,null,null,null,null,null,null,null,null,null,null,null,null,null,null,null,null,null,null,null,null,null,null,null,null,null,null,null,null,null,null,null,null,null,null,null,null,null,null,null,null,null,null,null,null,null,null,null,null,null,null,null,null,null,null,8,10000000,{"$f":"J40","v":0},{"$f":"J42","v":0},{"$f":"J44","v":0},{"$f":"J46","v":0},null,null,null,0,0,0,0]
[null,null,null,null,null,null,null,null,null,null,null,null,null,null,null,null,null,null,null,null,null,null,null,null,null,null,null,null,null,null,null,null,null,null,null,null,null,null,null,null,null,null,null,null,null,null,null,null,null,null,null,null,null,null,null,null,null,7,1000000,{"$f":"K40","v":0},{"$f":"K42","v":0},{"$f":"K44","v":0},{"$f":"K46","v":0},null,null,null,0,0,0,0]
[null,null,null,null,null,null,null,null,null,null,null,null,null,null,null,null,null,null,null,null,null,null,null,null,null,null,null,null,null,null,null,null,null,null,null,null,null,null,null,null,null,null,null,null,null,null,null,null,null,null,null,null,null,null,null,null,null,6,100000,{"$f":"L40","v":0},{"$f":"L42","v":0},{"$f":"L44","v":0},{"$f":"L46","v":0},null,null,null,0,0,0,0]
[null,null,null,null,null,null,null,null,null,null,null,null,null,null,null,null,null,null,null,null,null,null,null,null,null,null,null,null,null,null,null,null,null,null,null,null,null,null,null,null,null,null,null,null,null,null,null,null,null,null,null,null,null,null,null,null,null,5,10000,{"$f":"M40","v":0},{"$f":"M42","v":0},{"$f":"M44","v":0},{"$f":"M46","v":0},null,null,null,0,0,0,0]
[null,null,null,null,null,null,null,null,null,null,null,null,null,null,null,null,null,null,null,null,null,null,null,null,null,null,null,null,null,null,null,null,null,null,null,null,null,null,null,null,null,null,null,null,null,null,null,null,null,null,null,null,null,null,null,null,null,4,1000,{"$f":"N40","v":0},{"$f":"N42","v":0},{"$f":"N44","v":0},{"$f":"N46","v":0},null,null,null,0,0,0,0]
[null,null,null,null,null,null,null,null,null,null,null,null,null,null,null,null,null,null,null,null,null,null,null,null,null,null,null,null,null,null,null,null,null,null,null,null,null,null,null,null,null,null,null,null,null,null,null,null,null,null,null,null,null,null,null,null,null,3,100,{"$f":"O40","v":0},{"$f":"O42","v":0},{"$f":"O44","v":0},{"$f":"O46","v":0},null,null,null,0,0,0,0]
[null,null,null,null,null,null,null,null,null,null,null,null,null,null,null,null,null,null,null,null,null,null,null,null,null,null,null,null,null,null,null,null,null,null,null,null,null,null,null,null,null,null,null,null,null,null,null,null,null,null,null,null,null,null,null,null,null,2,10,{"$f":"P40","v":0},{"$f":"P42","v":0},{"$f":"P44","v":0},{"$f":"P46","v":0},null,null,null,0,0,0,0]
[null,null,null,null,null,null,null,null,null,null,null,null,null,null,null,null,null,null,null,null,null,null,null,null,null,null,null,null,null,null,null,null,null,null,null,null,null,null,null,null,null,null,null,null,null,null,null,null,null,null,null,null,null,null,null,null,null,1,1,{"$f":"Q40","v":0},{"$f":"Q42","v":0},{"$f":"Q44","v":0},{"$f":"Q46","v":0},null,null,null,0,0,0,0]
[null,null,null,null,null,null,null,null,null,null,null,null,null,null,null,null,null,null,null,null,null,null,null,null,null,null,null,null,null,null,null,null,null,null,null,null,null,null,null,null,null,null,null,null,null,null,null,null,null,null,null,null,null,null,null,null,null,null,null,null,null,null,null,null,null,null,{"$f":"SUM(BO122:BO132)","v":0},{"$f":"SUM(BP122:BP132)","v":0},{"$f":"SUM(BQ122:BQ132)","v":0},{"$f":"SUM(BR122:BR132)","v":0}]
[null,null,null,null,null,null,null,null,null,null,null,null,null,null,null,null,null,null,null,null,null,null,null,null,null,null,null,null,null,null,null,null,null,null,null,null,null,null,null,null,null,null,null,null,null,null,null,null,null,null,null,null,null,null,null,null,null,null,null,null,null,null,null,null,null,null,null,null,null,null,null,{"$f":"BO133+BP133+BQ133+BR133+BU108","v":0},{"$f":"BO133+BP133+BQ133+BR133","v":0}]
[null,null,null,null,null,null,null,null,null,null,null,null,null,null,null,null,null,null,null,null,null,null,null,null,null,null,null,null,null,null,null,null,null,null,null,null,null,null,null,null,null,null,null,null,null,null,null,null,null,null,null,null,null,null,null,null,null,11,10000000000,null,null,null,null,null,null,11,{"$f":"+G47*BG135","v":0}]
[null,null,null,null,null,null,null,null,null,null,null,null,null,null,null,null,null,null,null,null,null,null,null,null,null,null,null,null,null,null,null,null,null,null,null,null,null,null,null,null,null,null,null,null,null,null,null,null,null,null,null,null,null,null,null,null,null,10,1000000000,null,null,null,null,null,null,10,{"$f":"+H47*BG136","v":0}]
[null,null,null,null,null,null,null,null,null,null,null,null,null,null,null,null,null,null,null,null,null,null,null,null,null,null,null,null,null,null,null,null,null,null,null,null,null,null,null,null,null,null,null,null,null,null,null,null,null,null,null,null,null,null,null,null,null,9,100000000,null,null,null,null,null,null,9,{"$f":"+I47*BG137","v":0}]
[null,null,null,null,null,null,null,null,null,null,null,null,null,null,null,null,null,null,null,null,null,null,null,null,null,null,null,null,null,null,null,null,null,null,null,null,null,null,null,null,null,null,null,null,null,null,null,null,null,null,null,null,null,null,null,null,null,8,10000000,null,null,null,null,null,null,8,{"$f":"+J47*BG138","v":0}]
[null,null,null,null,null,null,null,null,null,null,null,null,null,null,null,null,null,null,null,null,null,null,null,null,null,null,null,null,null,null,null,null,null,null,null,null,null,null,null,null,null,null,null,null,null,null,null,null,null,null,null,null,null,null,null,null,null,7,1000000,null,null,null,null,null,null,7,{"$f":"+K47*BG139","v":0}]
[null,null,null,null,null,null,null,null,null,null,null,null,null,null,null,null,null,null,null,null,null,null,null,null,null,null,null,null,null,null,null,null,null,null,null,null,null,null,null,null,null,null,null,null,null,null,null,null,null,null,null,null,null,null,null,null,null,6,100000,null,null,null,null,null,null,6,{"$f":"+L47*BG140","v":0}]
[null,null,null,null,null,null,null,null,null,null,null,null,null,null,null,null,null,null,null,null,null,null,null,null,null,null,null,null,null,null,null,null,null,null,null,null,null,null,null,null,null,null,null,null,null,null,null,null,null,null,null,null,null,null,null,null,null,5,10000,null,null,null,null,null,null,5,{"$f":"+M47*BG141","v":0}]
[null,null,null,null,null,null,null,null,null,null,null,null,null,null,null,null,null,null,null,null,null,null,null,null,null,null,null,null,null,null,null,null,null,null,null,null,null,null,null,null,null,null,null,null,null,null,null,null,null,null,null,null,null,null,null,null,null,4,1000,null,null,null,null,null,null,4,{"$f":"+N47*BG142","v":0}]
[null,null,null,null,null,null,null,null,null,null,null,null,null,null,null,null,null,null,null,null,null,null,null,null,null,null,null,null,null,null,null,null,null,null,null,null,null,null,null,null,null,null,null,null,null,null,null,null,null,null,null,null,null,null,null,null,null,3,100,null,null,null,null,null,null,3,{"$f":"+O47*BG143","v":0}]
[null,null,null,null,null,null,null,null,null,null,null,null,null,null,null,null,null,null,null,null,null,null,null,null,null,null,null,null,null,null,null,null,null,null,null,null,null,null,null,null,null,null,null,null,null,null,null,null,null,null,null,null,null,null,null,null,null,2,10,null,null,null,null,null,null,2,{"$f":"+P47*BG144","v":0}]
[null,null,null,null,null,null,null,null,null,null,null,null,null,null,null,null,null,null,null,null,null,null,null,null,null,null,null,null,null,null,null,null,null,null,null,null,null,null,null,null,null,null,null,null,null,null,null,null,null,null,null,null,null,null,null,null,null,1,1,null,null,null,null,null,null,1,{"$f":"+Q47*BG145","v":0}]
[]
[null,null,null,null,null,null,null,null,null,null,null,null,null,null,null,null,null,null,null,null,null,null,null,null,null,null,null,null,null,null,null,null,null,null,null,null,null,null,null,null,null,null,null,null,null,null,null,null,null,null,null,null,null,null,null,null,null,null,"合計"]
[null,null,null,null,null,null,null,null,null,null,null,null,null,null,null,null,null,null,null,null,null,null,null,null,null,null,null,null,null,null,null,null,null,null,null,null,null,null,null,null,null,null,null,null,null,null,null,null,null,null,null,null,null,null,null,null,null,11,10000000000,{"$f":"G23","v":0},{"$f":"G36","v":0},{"$f":"G47","v":0},null,null,null,null,{"$f":"BG148*BH148","v":0},{"$f":"BG148*BI148","v":0},{"$f":"BG148*BJ148","v":0}]
[null,null,null,null,null,null,null,null,null,null,null,null,null,null,null,null,null,null,null,null,null,null,null,null,null,null,null,null,null,null,null,null,null,null,null,null,null,null,null,null,null,null,null,null,null,null,null,null,null,null,null,null,null,null,null,null,null,10,1000000000,{"$f":"H23","v":0},{"$f":"H36","v":0},{"$f":"H47","v":0},null,null,null,null,{"$f":"BG149*BH149","v":0},{"$f":"BG149*BI149","v":0},{"$f":"BG149*BJ149","v":0}]
[null,null,null,null,null,null,null,null,null,null,null,null,null,null,null,null,null,null,null,null,null,null,null,null,null,null,null,null,null,null,null,null,null,null,null,null,null,null,null,null,null,null,null,null,null,null,null,null,null,null,null,null,null,null,null,null,null,9,100000000,{"$f":"I23","v":0},{"$f":"I36","v":0},{"$f":"I47","v":0},null,null,null,null,0,0,0]
[null,null,null,null,null,null,null,null,null,null,null,null,null,null,null,null,null,null,null,null,null,null,null,null,null,null,null,null,null,null,null,null,null,null,null,null,null,null,null,null,null,null,null,null,null,null,null,null,null,null,null,null,null,null,null,null,null,8,10000000,{"$f":"J23","v":0},{"$f":"J36","v":0},{"$f":"J47","v":0},null,null,null,null,0,0,0]
[null,null,null,null,null,null,null,null,null,null,null,null,null,null,null,null,null,null,null,null,null,null,null,null,null,null,null,null,null,null,null,null,null,null,null,null,null,null,null,null,null,null,null,null,null,null,null,null,null,null,null,null,null,null,null,null,null,7,1000000,{"$f":"K23","v":0},{"$f":"K36","v":0},{"$f":"K47","v":0},null,null,null,null,0,0,0]
[null,null,null,null,null,null,null,null,null,null,null,null,null,null,null,null,null,null,null,null,null,null,null,null,null,null,null,null,null,null,null,null,null,null,null,null,null,null,null,null,null,null,null,null,null,null,null,null,null,null,null,null,null,null,null,null,null,6,100000,{"$f":"L23","v":0},{"$f":"L36","v":0},{"$f":"L47","v":0},null,null,null,null,0,0,0]
[null,null,null,null,null,null,null,null,null,null,null,null,null,null,null,null,null,null,null,null,null,null,null,null,null,null,null,null,null,null,null,null,null,null,null,null,null,null,null,null,null,null,null,null,null,null,null,null,null,null,null,null,null,null,null,null,null,5,10000,{"$f":"M23","v":0},{"$f":"M36","v":0},{"$f":"M47","v":0},null,null,null,null,0,0,0]
[null,null,null,null,null,null,null,null,null,null,null,null,null,null,null,null,null,null,null,null,null,null,null,null,null,null,null,null,null,null,null,null,null,null,null,null,null,null,null,null,null,null,null,null,null,null,null,null,null,null,null,null,null,null,null,null,null,4,1000,{"$f":"N23","v":0},{"$f":"N36","v":0},{"$f":"N47","v":0},null,null,null,null,0,0,0]
[null,null,null,null,null,null,null,null,null,null,null,null,null,null,null,null,null,null,null,null,null,null,null,null,null,null,null,null,null,null,null,null,null,null,null,null,null,null,null,null,null,null,null,null,null,null,null,null,null,null,null,null,null,null,null,null,null,3,100,{"$f":"O23","v":0},{"$f":"O36","v":0},{"$f":"O47","v":0},null,null,null,null,0,0,0]
[null,null,null,null,null,null,null,null,null,null,null,null,null,null,null,null,null,null,null,null,null,null,null,null,null,null,null,null,null,null,null,null,null,null,null,null,null,null,null,null,null,null,null,null,null,null,null,null,null,null,null,null,null,null,null,null,null,2,10,{"$f":"P23","v":0},{"$f":"P36","v":0},{"$f":"P47","v":0},null,null,null,null,0,0,0]
[null,null,null,null,null,null,null,null,null,null,null,null,null,null,null,null,null,null,null,null,null,null,null,null,null,null,null,null,null,null,null,null,null,null,null,null,null,null,null,null,null,null,null,null,null,null,null,null,null,null,null,null,null,null,null,null,null,1,1,{"$f":"Q23","v":0},{"$f":"Q36","v":0},{"$f":"Q47","v":0},null,null,null,null,0,0,0]
[null,null,null,null,null,null,null,null,null,null,null,null,null,null,null,null,null,null,null,null,null,null,null,null,null,null,null,null,null,null,null,null,null,null,null,null,null,null,null,null,null,null,null,null,null,null,null,null,null,null,null,null,null,null,null,null,null,null,null,null,null,null,null,null,null,null,{"$f":"SUM(BO148:BO158)","v":0},{"$f":"SUM(BP148:BP158)","v":0},{"$f":"SUM(BQ148:BQ158)","v":0}]
[null,null,null,null,null,null,null,null,null,null,null,null,null,null,null,null,null,null,null,null,null,null,null,null,null,null,null,null,null,null,null,null,null,null,null,null,null,null,null,null,null,null,null,null,null,null,null,null,null,null,null,null,null,null,null,null,null,null,null,null,null,null,null,null,null,null,null,null,null,null,null,null,{"$f":"BO159+BP159+BU134","v":0}]
[null,null,null,null,null,null,null,null,null,null,null,null,null,null,null,null,null,null,null,null,null,null,null,null,null,null,null,null,null,null,null,null,null,null,null,null,null,null,null,null,null,null,null,null,null,null,null,null,null,null,null,null,null,null,null,null,null,11,10000000000,null,null,null,null,null,null,11,{"$f":"+G50*BG161","v":0}]
[null,null,null,null,null,null,null,null,null,null,null,null,null,null,null,null,null,null,null,null,null,null,null,null,null,null,null,null,null,null,null,null,null,null,null,null,null,null,null,null,null,null,null,null,null,null,null,null,null,null,null,null,null,null,null,null,null,10,1000000000,null,null,null,null,null,null,10,{"$f":"+H50*BG162","v":0}]
[null,null,null,null,null,null,null,null,null,null,null,null,null,null,null,null,null,null,null,null,null,null,null,null,null,null,null,null,null,null,null,null,null,null,null,null,null,null,null,null,null,null,null,null,null,null,null,null,null,null,null,null,null,null,null,null,null,9,100000000,null,null,null,null,null,null,9,{"$f":"+I50*BG163","v":0}]
[null,null,null,null,null,null,null,null,null,null,null,null,null,null,null,null,null,null,null,null,null,null,null,null,null,null,null,null,null,null,null,null,null,null,null,null,null,null,null,null,null,null,null,null,null,null,null,null,null,null,null,null,null,null,null,null,null,8,10000000,null,null,null,null,null,null,8,{"$f":"+J50*BG164","v":0}]
[null,null,null,null,null,null,null,null,null,null,null,null,null,null,null,null,null,null,null,null,null,null,null,null,null,null,null,null,null,null,null,null,null,null,null,null,null,null,null,null,null,null,null,null,null,null,null,null,null,null,null,null,null,null,null,null,null,7,1000000,null,null,null,null,null,null,7,{"$f":"+K50*BG165","v":0}]
[null,null,null,null,null,null,null,null,null,null,null,null,null,null,null,null,null,null,null,null,null,null,null,null,null,null,null,null,null,null,null,null,null,null,null,null,null,null,null,null,null,null,null,null,null,null,null,null,null,null,null,null,null,null,null,null,null,6,100000,null,null,null,null,null,null,6,{"$f":"+L50*BG166","v":0}]
[null,null,null,null,null,null,null,null,null,null,null,null,null,null,null,null,null,null,null,null,null,null,null,null,null,null,null,null,null,null,null,null,null,null,null,null,null,null,null,null,null,null,null,null,null,null,null,null,null,null,null,null,null,null,null,null,null,5,10000,null,null,null,null,null,null,5,{"$f":"+M50*BG167","v":0}]
[null,null,null,null,null,null,null,null,null,null,null,null,null,null,null,null,null,null,null,null,null,null,null,null,null,null,null,null,null,null,null,null,null,null,null,null,null,null,null,null,null,null,null,null,null,null,null,null,null,null,null,null,null,null,null,null,null,4,1000,null,null,null,null,null,null,4,{"$f":"+N50*BG168","v":0}]
[null,null,null,null,null,null,null,null,null,null,null,null,null,null,null,null,null,null,null,null,null,null,null,null,null,null,null,null,null,null,null,null,null,null,null,null,null,null,null,null,null,null,null,null,null,null,null,null,null,null,null,null,null,null,null,null,null,3,100,null,null,null,null,null,null,3,{"$f":"+O50*BG169","v":0}]
[null,null,null,null,null,null,null,null,null,null,null,null,null,null,null,null,null,null,null,null,null,null,null,null,null,null,null,null,null,null,null,null,null,null,null,null,null,null,null,null,null,null,null,null,null,null,null,null,null,null,null,null,null,null,null,null,null,2,10,null,null,null,null,null,null,2,{"$f":"+P50*BG170","v":0}]
[null,null,null,null,null,null,null,null,null,null,null,null,null,null,null,null,null,null,null,null,null,null,null,null,null,null,null,null,null,null,null,null,null,null,null,null,null,null,null,null,null,null,null,null,null,null,null,null,null,null,null,null,null,null,null,null,null,1,1,null,null,null,null,null,null,1,{"$f":"+Q50*BG171","v":0}]

{"sheet":"記載例","index":1,"n_rows":52,"n_cols":42,"rows_kept":52,"cut":false,"hidden":false,"merged":[[4,9,4,11],[3,7,4,8],[3,9,3,11],[3,12,4,15],[8,41,8,43],[7,26,7,28],[7,29,7,31],[7,32,7,34],[7,35,7,37],[7,38,7,40],[7,41,7,43],[8,26,8,28],[8,29,8,31],[8,32,8,34],[8,35,8,37],[8,38,8,40],[5,2,5,4],[5,7,6,11],[9,2,9,17],[10,2,12,2],[12,3,12,16],[10,3,11,17],[8,2,8,5],[8,6,8,12],[8,13,8,17],[6,2,7,4],[7,6,7,12],[7,13,7,17],[17,11,18,17],[14,2,15,4],[14,5,15,12],[14,13,15,17],[13,2,13,4],[13,5,13,12],[13,13,13,17],[34,3,35,5],[34,6,35,6],[16,2,16,10],[16,11,16,17],[21,3,22,5],[21,6,22,6],[23,3,24,5],[23,6,24,6],[19,2,25,2],[19,3,20,5],[19,6,20,6],[25,3,25,5],[18,2,18,5],[18,7,18,9],[17,6,18,6],[17,10,18,10],[32,3,33,5],[32,6,33,6],[28,3,29,5],[28,6,29,6],[30,3,31,5],[30,6,31,6],[48,8,49,8],[45,3,45,5],[46,2,47,5],[46,6,47,6],[43,3,44,5],[43,6,44,6],[26,2,45,2],[26,3,27,5],[26,6,27,6],[41,3,42,5],[41,6,42,6],[39,3,40,5],[39,6,40,6],[37,3,38,5],[37,6,38,6],[36,3,36,5],[48,9,49,9],[48,10,49,10],[48,11,54,11],[48,12,54,17],[55,2,55,11],[53,2,53,4],[54,2,54,4],[50,2,50,4],[50,5,50,6],[50,7,50,8],[50,9,50,10],[51,2,51,10],[48,2,49,4],[48,5,49,5],[48,6,49,6],[48,7,49,7],[15,26,16,31],[19,26,20,31],[24,26,24,31],[24,32,24,39],[25,26,25,31],[25,32,25,39],[23,26,23,31],[23,32,23,39],[19,32,19,39]]}
[null,"●記載例及び入力上の留意事項等"]
[null,"　（網掛部分は入力可能箇所）"]
[]
[null,null,null,null,null,null,null,"法　人",null,"県民税",null,null,"領 収 証 書 ",null,null,null,null,null,null,null,null,null,null,null,null,"※１","長野県で管理している番号になります。不明な場合は課税事務所にお問い合わせください。"]
[null,null,null,null,null,null,null,null,null,"事業税",null,null,null,null,null,null,null,null,null,null,null,null,null,null,null,null,"「行政機関における特定の個人を識別するための番号の利用に関する法律（番号法）」"]
[null,null,"都道府県ｺｰﾄﾞ",null,null,null,null,"特別法人事業税",null,null,null,null,null,null,null,null,null,null,null,null,null,null,null,null,null,null,"に基づく法人番号とは異なりますのでご注意ください。"]
[null,null,"200000"]
[null,null,null,null,null,null,"口座番号",null,null,null,null,null,null,"加入者",null,null,null,null,null,null,null,null,null,null,null,"※２","予定（中間)",null,null,"見込納付",null,null,"確定",null,null,"修正",null,null,"更正",null,null,"決定"]
[null,null,"長野県",null,null,null,"00560-1-960021",null,null,null,null,null,null,"長野県総務部税務課",null,null,null,null,null,null,null,null,null,null,null,null,11,null,null,50,null,null,51,null,null,52,null,null,53,null,null,54]
[null,null,"所在地及び法人名",null,null,null,null,null,null,null,null,null,null,null,null,null,null,null,null,null,null,null,null,null,null,null,"領収済通知書には上記の番号が記載されます。"]
[null,null,null,"長野県長野市大字南長野幅下692-2"]
[null,null,null,null,null,null,null,null,null,null,null,null,null,null,null,null,null,null,null,null,null,null,null,null,null,"※３","金額の確認（３枚ともに）をお願いします。"]
[null,null,null,"長野県庁",null,null,null,null,null,null,null,null,null,null,null,null,null,"様",null,null,null,null,null,null,null,null,"（マイナスの金額の記載には対応していません。）"]
[null,null,"年度",null,null,"※処理事項",null,null,null,null,null,null,null,"管理番号"]
[null,null,7,null,null,null,null,null,null,null,null,null,null,1000000,null,null,null,null,null,null,null,null,null,null,null,"※４","課税事務所がわからない場合はこちらをご覧ください。"]
[null,null,null,null,null,null,null,null,null,null,null,null,null,null,null,null,null,null,null,null,null,null,null,null,null,null,"「課税事務所一覧」"]
[null,null,"事業年度（算定期間）",null,null,null,null,null,null,null,null,"申告区分"]
[null,null,null,null,null,null,"から",null,null,null,"まで","確定"]
[null,null,"2024-04-01",null,null,null,null,"2025-03-31",null,null,null,null,null,null,null,null,null,null,null,null,null,null,null,null,null,"※５","納付場所の一覧はこちらをご覧ください。"]
[null,null,"法人県民税","法人税割額",null,null,"01","百","十","億","千","百","十","万","千","百","十","円",null,null,null,null,null,null,null,null,"「納付場所一覧」"]
[null,null,null,null,null,null,null,null,null,null,null,null,1,0,0,0,0,0]
[null,null,null,"均等割額",null,null,"02"]
[null,null,null,null,null,null,null,null,null,null,null,null,null,2,1,0,0,0,null,null,null,null,null,null,null,"※６","口座番号は下記のものをご使用ください。"]
[null,null,null,"延滞金",null,null,"03"]
[null,null,null,null,null,null,null,null,null,null,null,null,null,null,null,null,null,null,null,null,null,null,null,null,null,null,"口座番号",null,null,null,null,null,"加入者"]
[null,null,null,"計",null,null,"04",null,null,null,null,null,1,2,1,0,0,0,null,null,null,null,null,null,null,null,"00560-1-960021",null,null,null,null,null,"長野県総務部税務課"]
[null,null,"法人事業税・特別法人事業税","所得割額",null,null,"05"]
[null,null,null,null,null,null,null,null,null,null,null,null,1,0,0,0,0,0]
[null,null,null,"付加価値割額",null,null,"06"]
[]
[null,null,null,"資本割額",null,null,"07"]
[]
[null,null,null,"収入割額",null,null,"08"]
[]
[null,null,null,"特別法人事業税",null,null,"09"]
[null,null,null,null,null,null,null,null,null,null,null,null,1,0,0,0,0,0]
[null,null,null,"計\n(05～09)",null,null,"10",null,null,null,null,null,2,0,0,0,0,0]
[null,null,null,"延滞金",null,null,"11"]
[]
[null,null,null,"過少申告加算金",null,null,"12"]
[]
[null,null,null,"不申告加算金",null,null,"13"]
[]
[null,null,null,"重加算金",null,null,"14"]
[]
[null,null,null,"計\n(10～14)",null,null,"15",null,null,null,null,null,2,0,0,0,0,0]
[null,null,"合　計　額",null,null,null,"16"]
[null,null,null,null,null,null,null,null,null,null,null,"\\",3,2,1,0,0,0]
[null,null,"納期限",null,null,7,"年",6,"月",2,"日","領収日付印"]
[]
[null,null,"課税事務所",null,null,"長野県",null,"総合",null,"県税事務所"]
[null,null,"上記のとおり領収しました。(納税者保管）"]